bitfinex/quotes_SOLUSD_20240614
["timestamp","ask_amount","ask_price","bid_price","bid_amount"]
[1718373157238,24.9805,148.12,148.09,14.9905]
[1718373157558,2.4981,148.11,148.09,7.4951]
[1718373158451,28.5935,148.11,148.08,4.9972]
[1718373158654,13.6046,148.11,148.09,2.4984]
[1718373159254,21.099,148.11,148.08,24.9859]
[1718373159448,21.099,148.11,148.09,2.4984]
[1718373159750,6.11,148.11,148.1,2.4983]
[1718373160054,8.608,148.12,148.1,7.4949]
[1718373160252,2.498,148.12,148.1,7.4949]
[1718373160461,47.498,148.12,148.1,7.4949]
[1718373160831,52.494,148.12,148.1,2.4983]
[1718373161154,23.5952,148.13,148.1,14.9898]
[1718373161155,22.481,148.13,148.1,14.9898]
[1718373161359,8.608,148.12,148.1,7.4949]
[1718373161530,13.6039,148.12,148.1,2.4983]
[1718373162231,21.0978,148.12,148.09,24.9839]
[1718373163131,21.0978,148.12,148.1,2.4983]
[1718373163864,2.4981,148.11,148.09,7.495]
[1718373164067,7.4943,148.11,148.09,2.4983]
[1718373164263,14.9887,148.11,148.09,2.4983]
[1718373164558,8.6081,148.11,148.09,7.4951]
[1718373164771,21.0987,148.11,148.08,24.9851]
[1718373164956,13.6043,148.11,148.09,2.4984]
[1718373165147,8.6081,148.11,148.09,7.4953]
[1718373165559,11.1063,148.11,148.08,4.997]
[1718373165758,6.11,148.09,148.07,7.4961]
[1718373166069,6.11,148.09,148.06,2.4989]
[1718373166070,33.606,148.08,148.06,2.4989]
[1718373166367,6.11,148.08,148.06,22.4905]
[1718373166568,6.11,148.08,148.07,2.4988]
[1718373166780,20.0,148.08,148.07,24.988]
[1718373168345,20.0,148.08,148.07,2.4988]
[1718373168680,22.4986,148.08,148.06,2.4988]
[1718373169672,20.0,148.08,148.06,22.4905]
[1718373169874,20.0,148.08,148.07,7.4964]
[1718373170456,20.0,148.08,148.07,2.4988]
[1718373170669,20.0,148.08,148.06,24.9891]
[1718373171261,20.0,148.08,148.07,2.4988]
[1718373171457,8.65994845,148.13,148.05,6.11]
[1718373171658,8.65994845,148.13,148.02,16.4197]
[1718373171659,2.4983,148.1,148.08,2.4985]
[1718373171967,2.4985,148.09,148.07,2.4986]
[1718373172282,7.4955,148.09,148.06,24.9887]
[1718373172678,7.4955,148.09,148.04,6.11]
[1718373172679,2.4988,148.07,148.05,2.4991]
[1718373173361,24.9868,148.08,148.05,14.9948]
[1718373173561,7.4961,148.08,148.05,24.9914]
[1718373174388,8.6086,148.09,148.07,2.4988]
[1718373174696,21.1011,148.09,148.06,14.9936]
[1718373174900,8.6086,148.09,148.07,2.4988]
[1718373175064,13.6055,148.09,148.07,2.4988]
[1718373175264,14.9909,148.09,148.06,24.9895]
[1718373175485,2.4986,148.08,148.06,7.4967]
[1718373175791,31.1067,148.1,148.04,6.11]
[1718373176012,22.4983,148.1,148.08,2.4986]
[1718373176189,20.0,148.1,148.08,14.9916]
[1718373176498,22.4983,148.1,148.08,2.4986]
[1718373176669,42.4849,148.1,148.07,7.496]
[1718373176871,2.4984,148.09,148.07,7.496]
[1718373177201,42.4849,148.1,148.07,2.4986]
[1718373177202,31.1066,148.1,148.07,2.4986]
[1718373177373,2.4986,148.08,148.06,2.4988]
[1718373177573,24.985,148.09,148.06,14.9936]
[1718373177783,2.4986,148.09,148.07,2.4988]
[1718373178307,51.0938,148.1,148.07,14.9927]
[1718373178597,14.9909,148.09,148.06,24.9888]
[1718373179094,42.4854,148.1,148.07,7.4964]
[1718373179304,22.4984,148.1,148.07,22.4891]
[1718373179516,20.0,148.1,148.08,7.4956]
[1718373180104,22.4983,148.1,148.08,7.4956]
[1718373180299,22.4983,148.1,148.08,2.4985]
[1718373180510,2.4984,148.09,148.07,7.496]
[1718373180813,44.9831,148.1,148.07,14.9924]
[1718373181019,22.4984,148.1,148.08,2.4986]
[1718373181188,20.0,148.1,148.08,7.4958]
[1718373181390,22.4983,148.1,148.08,7.4958]
[1718373182219,34.9898,148.1,148.07,24.9875]
[1718373182526,22.4983,148.1,148.08,2.4986]
[1718373182694,22.4983,148.1,148.08,7.4957]
[1718373182893,20.0,148.1,148.09,14.9907]
[1718373183121,20.0,148.1,148.09,24.9846]
[1718373183805,14.988,148.12,148.09,24.9846]
[1718373184008,2.498,148.12,148.1,2.4982]
[1718373184188,24.9789,148.13,148.1,14.9894]
[1718373184389,2.498,148.12,148.1,7.4948]
[1718373184842,2.4983,148.1,148.07,23.601]
[1718373185152,7.495,148.1,148.08,2.4986]
[1718373185313,2.4981,148.11,148.08,22.4872]
[1718373185515,22.4822,148.12,148.09,7.4953]
[1718373185814,17.4862,148.12,148.09,14.9907]
[1718373186147,7.4941,148.12,148.09,24.9844]
[1718373186439,7.4941,148.12,148.1,2.4983]
[1718373187016,2.498,148.12,148.1,2.4983]
[1718373187347,24.9754,148.15,148.12,7.4936]
[1718373187645,7.4927,148.15,148.12,22.4815]
[1718373187851,7.4927,148.15,148.13,2.4978]
[1718373188216,7.4927,148.15,148.12,24.9793]
[1718373188438,14.9851,148.15,148.12,24.9793]
[1718373188919,2.4976,148.14,148.12,24.9793]
[1718373189132,2.4976,148.14,148.12,7.4936]
[1718373189446,24.975,148.15,148.12,7.4936]
[1718373189669,2.4972,148.17,148.11,6.4354]
[1718373189828,24.9669,148.2,148.17,14.9824]
[1718373190430,2.4968,148.19,148.17,22.4738]
[1718373190641,2.4969,148.18,148.16,31.0818]
[1718373190945,2.4969,148.18,148.16,13.6015]
[1718373191254,7.4901,148.2,148.18,2.4969]
[1718373191415,33.13043845,148.24,148.18,2.4969]
[1718373191416,2.4963,148.22,148.2,2.4965]
[1718373191617,23.94184845,148.24,148.17,28.583]
[1718373191919,23.94184845,148.24,148.18,7.4907]
[1718373191920,2.4966,148.2,148.18,7.4907]
[1718373192141,7.4888,148.22,148.2,2.4965]
[1718373192451,7.4888,148.22,148.2,7.4897]
[1718373192649,2.4964,148.21,148.19,24.9667]
[1718373193117,24.963,148.22,148.2,2.4966]
[1718373193531,2.4964,148.22,148.2,14.9796]
[1718373193845,2.4962,148.22,148.21,2.4964]
[1718373194045,20.274,148.24,148.19,6.11]
[1718373194350,7.4876,148.25,148.21,6.11]
[1718373194537,7.4876,148.25,148.16,6.1232]
[1718373194538,2.4957,148.25,148.23,22.4649]
[1718373194746,24.9565,148.26,148.24,2.4959]
[1718373194948,22.4597,148.27,148.24,7.4877]
[1718373195153,7.4868,148.26,148.24,7.4877]
[1718373195339,2.4956,148.26,148.24,4.9918]
[1718373195542,22.4596,148.27,148.25,2.4957]
[1718373195756,24.9551,148.27,148.25,2.4957]
[1718373196635,2.4956,148.26,148.24,31.0691]
[1718373197235,7.4868,148.26,148.24,13.5976]
[1718373197836,7.4865,148.27,148.25,7.4871]
[1718373198228,2.4955,148.27,148.25,7.4871]
[1718373198428,2.4954,148.27,148.25,17.4701]
[1718373198650,7.4874,148.25,148.23,7.4881]
[1718373199158,2.4957,148.26,148.24,2.4959]
[1718373199345,22.4607,148.26,148.23,24.9601]
[1718373199547,2.4958,148.25,148.23,24.9601]
[1718373200269,24.9564,148.26,148.24,2.4959]
[1718373200638,2.4957,148.25,148.24,2.4959]
[1718373200841,24.9564,148.26,148.24,2.4959]
[1718373201460,7.4871,148.26,148.24,2.4959]
[1718373201762,2.4957,148.26,148.24,14.9755]
[1718373202168,2.4957,148.26,148.22,7.4886]
[1718373202169,7.4878,148.24,148.22,7.4886]
[1718373202373,2.4959,148.24,148.22,14.9774]
[1718373202534,2.4959,148.24,148.22,24.9625]
[1718373202738,2.4961,148.23,148.21,24.9632]
[1718373202958,7.488,148.24,148.22,7.4887]
[1718373203150,2.496,148.24,148.22,14.9774]
[1718373203580,2.4958,148.25,148.23,14.9762]
[1718373203868,2.4957,148.26,148.24,7.4877]
[1718373204053,22.4957,148.26,148.24,7.4877]
[1718373204243,41.0838,148.26,148.24,2.4959]
[1718373204558,27.4869,148.26,148.24,2.4959]
[1718373204764,2.4957,148.25,148.23,24.9604]
[1718373205147,14.9746,148.25,148.23,2.4959]
[1718373205739,36.0924,148.26,148.21,4.9926]
[1718373205740,17.4718,148.24,148.21,4.9926]
[1718373206062,2.4961,148.23,148.21,7.4889]
[1718373206555,2.4961,148.23,148.21,2.4964]
[1718373206556,24.9613,148.23,148.21,2.4964]
[1718373206762,2.4962,148.22,148.21,2.4964]
[1718373206955,24.9613,148.23,148.21,2.4964]
[1718373207149,7.4884,148.23,148.21,7.4892]
[1718373208167,2.4962,148.23,148.21,7.4892]
[1718373208553,2.4962,148.23,148.21,14.9785]
[1718373208744,14.9768,148.23,148.21,2.4963]
[1718373209061,14.9768,148.23,148.21,7.4891]
[1718373209062,13.5984,148.23,148.21,7.4891]
[1718373209260,13.5984,148.23,148.21,2.4963]
[1718373209448,28.5774,148.22,148.16,6.1232]
[1718373209756,22.4685,148.21,148.18,7.4904]
[1718373209966,0.33333334,148.2,148.19,14.9804]
[1718373210178,0.33333334,148.2,148.15,15.7161]
[1718373210361,0.33333334,148.2,148.17,2.497]
[1718373210362,8.6068,148.19,148.17,2.497]
[1718373210562,6.11,148.18,148.17,7.4912]
[1718373210761,0.33333334,148.18,148.17,2.497]
[1718373211060,0.33333334,148.18,148.17,7.4912]
[1718373211257,6.44333334,148.18,148.17,2.4971]
[1718373212486,0.33333334,148.18,148.17,24.9711]
[1718373212878,0.33333334,148.18,148.17,31.0811]
[1718373213204,0.33333334,148.18,148.17,24.9711]
[1718373214372,0.33333334,148.18,148.17,31.0811]
[1718373215364,0.33333334,148.18,148.17,7.4913]
[1718373215571,0.33333334,148.18,148.17,14.9826]
[1718373215793,0.33333334,148.18,148.17,24.9711]
[1718373216167,0.33333334,148.18,148.17,31.0811]
[1718373217196,0.33333334,148.18,148.17,24.9711]
[1718373217487,0.33333334,148.18,148.17,31.0811]
[1718373219665,0.33333334,148.18,148.17,46.9586]
[1718373222390,0.33333334,148.18,148.17,24.9711]
[1718373245035,0.33333334,148.18,148.17,31.1011]
[1718373245209,0.33333334,148.18,148.17,24.9711]
[1718373247745,0.33333334,148.18,148.17,7.4913]
[1718373247953,0.33333334,148.18,148.17,24.9711]
[1718373252333,0.33333334,148.18,148.17,31.1011]
[1718373252959,0.33333334,148.18,148.17,24.9711]
[1718373269680,16.45123334,148.18,148.16,2.4972]
[1718373269852,18.6158,148.17,148.14,4.9952]
[1718373270052,6.13,148.16,148.15,7.4922]
[1718373270371,6.13,148.16,148.15,24.9744]
[1718373270578,6.13,148.16,148.15,7.4922]
[1718373270881,6.13,148.16,148.15,24.9744]
[1718373271183,6.13,148.17,148.16,24.9725]
[1718373271371,6.13,148.18,148.17,2.4971]
[1718373271571,26.13,148.18,148.17,2.4971]
[1718373271782,20.0,148.18,148.17,24.9711]
[1718373272400,15.3336,148.19,148.18,24.9694]
[1718373272691,6.143,148.22,148.12,6.13]
[1718373272973,20.0,148.21,148.2,14.9794]
[1718373273476,20.0,148.21,148.2,2.4965]
[1718373273664,27.4894,148.21,148.18,24.9687]
[1718373273868,27.4894,148.21,148.19,2.4967]
[1718373274260,33.6194,148.21,148.19,2.4967]
[1718373274577,41.1087,148.21,148.18,24.9687]
[1718373274787,41.1087,148.21,148.18,2.4968]
[1718373274788,2.4966,148.2,148.18,2.4968]
[1718373274986,14.9798,148.2,148.17,24.9702]
[1718373275163,13.6199,148.2,148.18,2.4969]
[1718373275479,2.4966,148.2,148.18,7.4907]
[1718373275683,48.5987,148.21,148.18,2.4969]
[1718373275866,7.4899,148.2,148.17,24.9701]
[1718373276181,7.4899,148.2,148.18,2.4969]
[1718373276357,2.4966,148.2,148.18,2.4969]
[1718373276675,14.9797,148.2,148.17,24.9701]
[1718373276986,2.4967,148.19,148.17,7.4909]
[1718373277190,2.4967,148.19,148.17,2.4969]
[1718373277395,13.62,148.2,148.18,2.4969]
[1718373277577,6.13,148.2,148.19,2.4967]
[1718373277761,26.13,148.2,148.19,2.4967]
[1718373278469,6.13,148.21,148.19,22.4709]
[1718373278773,12.273,148.22,148.2,24.9658]
[1718373278975,20.0,148.21,148.2,7.4897]
[1718373279279,20.0,148.21,148.19,24.967]
[1718373279482,22.4964,148.21,148.19,7.49]
[1718373279772,22.4964,148.21,148.2,2.4966]
[1718373279773,20.0,148.21,148.2,2.4966]
[1718373280267,12.273,148.22,148.2,14.9795]
[1718373280586,13.6193,148.21,148.19,2.4966]
[1718373280767,2.4968,148.19,148.17,7.4909]
[1718373280967,8.6268,148.19,148.17,2.4969]
[1718373281176,2.497,148.18,148.15,22.4764]
[1718373281368,13.6208,148.19,148.16,14.9833]
[1718373281369,31.099,148.19,148.16,14.9833]
[1718373281568,13.6206,148.19,148.17,2.4971]
[1718373281789,7.4906,148.19,148.17,2.4971]
[1718373282398,31.0971,148.2,148.17,14.9826]
[1718373282975,7.4903,148.19,148.17,2.4971]
[1718373283196,7.4903,148.19,148.16,22.4747]
[1718373283197,13.6209,148.18,148.16,2.4972]
[1718373283762,6.13,148.18,148.16,22.4753]
[1718373283963,8.6269,148.18,148.16,4.9944]
[1718373284172,8.6269,148.18,148.16,7.4915]
[1718373284776,6.13,148.17,148.16,2.4972]
[1718373285016,6.13,148.17,148.15,24.9735]
[1718373285383,8.6271,148.17,148.15,2.4973]
[1718373285694,8.6273,148.16,148.14,2.4975]
[1718373286199,8.6273,148.16,148.14,2.4976]
[1718373286697,8.6273,148.16,148.14,7.4928]
[1718373286990,8.6273,148.16,148.14,2.4976]
[1718373287191,8.6273,148.16,148.14,7.4928]
[1718373287565,8.6273,148.16,148.14,2.4976]
[1718373287796,6.13,148.15,148.14,2.4976]
[1718373288165,6.13,148.15,148.14,7.4928]
[1718373288367,6.13,148.15,148.14,14.9857]
[1718373288562,8.6273,148.16,148.14,2.4976]
[1718373288774,6.13,148.15,148.14,2.4976]
[1718373289999,6.13,148.15,148.14,24.9762]
[1718373290204,6.13,148.16,148.15,2.4974]
[1718373290404,26.13,148.16,148.15,2.4974]
[1718373290780,20.0,148.16,148.15,7.4923]
[1718373291506,20.0,148.16,148.15,2.4974]
[1718373292529,20.0,148.16,148.14,24.9755]
[1718373292721,20.0,148.16,148.14,2.4974]
[1718373292884,20.0,148.16,148.14,14.9853]
[1718373293707,20.0,148.16,148.14,7.4925]
[1718373294093,20.0,148.16,148.14,14.9853]
[1718373294310,20.0,148.16,148.15,2.4974]
[1718373294611,20.0,148.16,148.15,7.4923]
[1718373295187,20.0,148.16,148.15,2.4974]
[1718373295405,6.13,148.17,148.15,7.4923]
[1718373295607,20.0,148.16,148.15,2.4974]
[1718373296011,20.0,148.16,148.14,14.9852]
[1718373296189,20.0,148.16,148.14,22.478]
[1718373296391,20.0,148.16,148.13,4.9955]
[1718373296392,44.9738,148.16,148.13,4.9955]
[1718373296614,34.9843,148.16,148.13,7.4931]
[1718373296788,27.4921,148.16,148.14,2.4976]
[1718373297709,2.4974,148.15,148.13,7.4931]
[1718373298213,51.1032,148.16,148.13,7.4931]
[1718373298583,2.4974,148.15,148.12,17.485]
[1718373298792,2.4974,148.15,148.13,7.4932]
[1718373299185,42.4758,148.16,148.13,7.4932]
[1718373299385,6.13,148.15,148.13,7.4932]
[1718373299586,33.6221,148.16,148.14,2.4976]
[1718373299789,33.6221,148.16,148.13,24.9775]
[1718373299986,41.114,148.16,148.13,24.9775]
[1718373300216,14.9849,148.15,148.12,24.9787]
[1718373300422,33.6221,148.16,148.13,24.9776]
[1718373300618,20.0,148.16,148.14,7.4928]
[1718373300791,15.2867,148.18,148.16,7.4916]
[1718373300792,17.7837,148.18,148.16,7.4916]
[1718373300999,20.0,148.17,148.15,24.9738]
[1718373301307,20.0,148.17,148.16,7.4919]
[1718373301614,20.0,148.17,148.16,2.4973]
[1718373301814,20.0,148.17,148.15,24.9736]
[1718373302011,20.0,148.17,148.15,22.4763]
[1718373302195,20.0,148.17,148.15,24.9736]
[1718373302587,20.0,148.17,148.16,2.4973]
[1718373302791,20.0,148.17,148.15,17.4815]
[1718373303090,20.0,148.17,148.15,24.9738]
[1718373303287,22.4971,148.17,148.15,7.492]
[1718373303518,20.0,148.17,148.15,7.492]
[1718373303693,20.0,148.17,148.15,14.9843]
[1718373303897,20.0,148.17,148.15,24.9741]
[1718373304234,20.0,148.17,148.16,2.4973]
[1718373304432,24.9669,148.2,148.17,14.9824]
[1718373304596,27.4904,148.19,148.16,22.4749]
[1718373304925,16.1179,148.18,148.14,17.4829]
[1718373305221,22.4743,148.17,148.14,2.4975]
[1718373305523,31.1015,148.17,148.14,7.4927]
[1718373305693,31.1015,148.17,148.14,14.9855]
[1718373306920,13.6215,148.17,148.15,2.4974]
[1718373307293,8.6272,148.17,148.15,7.4923]
[1718373307498,6.13,148.18,148.16,7.4917]
[1718373307800,20.0,148.19,148.17,24.9708]
[1718373308106,27.4904,148.19,148.17,2.497]
[1718373308310,22.4728,148.18,148.15,4.9947]
[1718373308517,7.4916,148.17,148.15,2.4974]
[1718373308892,2.4972,148.17,148.15,2.4974]
[1718373311032,7.4914,148.17,148.15,2.4974]
[1718373311206,7.4914,148.17,148.14,24.9758]
[1718373311399,7.4914,148.17,148.12,6.13]
[1718373311400,6.13,148.18,148.12,6.13]
[1718373311711,26.13,148.19,148.17,7.4913]
[1718373312011,26.13,148.19,148.17,14.9826]
[1718373312215,22.4969,148.19,148.16,22.4747]
[1718373312413,33.6205,148.19,148.16,24.9718]
[1718373312732,41.1109,148.19,148.16,24.9718]
[1718373312905,33.6205,148.19,148.17,2.4971]
[1718373313532,28.6269,148.19,148.17,7.4913]
[1718373313737,20.0,148.19,148.18,2.4969]
[1718373314911,20.0,148.19,148.17,24.9706]
[1718373315117,20.0,148.19,148.18,2.4969]
[1718373315315,20.0,148.19,148.17,14.9825]
[1718373315518,22.4968,148.19,148.17,2.497]
[1718373315909,2.4969,148.18,148.16,7.4915]
[1718373316230,28.605,148.17,148.14,7.4927]
[1718373316433,2.4973,148.16,148.14,2.4975]
[1718373316647,6.13,148.16,148.12,2.4979]
[1718373316940,44.9754,148.15,148.12,7.4937]
[1718373317308,33.6226,148.15,148.12,14.9875]
[1718373317509,33.6226,148.15,148.13,2.4978]
[1718373318233,28.6275,148.15,148.13,2.4978]
[1718373318536,26.13,148.15,148.13,14.9868]
[1718373319120,43.613,148.15,148.11,7.4941]
[1718373319318,2.4976,148.14,148.12,2.4978]
[1718373320416,51.1056,148.15,148.12,7.4937]
[1718373321035,28.6276,148.15,148.12,22.4815]
[1718373321335,28.6276,148.15,148.13,7.4932]
[1718373321336,6.13,148.15,148.13,7.4932]
[1718373321845,2.4974,148.16,148.14,2.4976]
[1718373322018,33.622,148.16,148.13,24.9774]
[1718373322227,2.4974,148.15,148.13,4.9955]
[1718373322429,2.4976,148.14,148.12,7.4936]
[1718373322825,31.1047,148.15,148.12,7.4936]
[1718373323516,31.1048,148.15,148.12,7.4937]
[1718373323717,2.4976,148.14,148.12,7.4937]
[1718373323931,2.4976,148.14,148.12,2.4978]
[1718373324250,8.6276,148.14,148.12,2.4978]
[1718373324429,8.6276,148.14,148.11,7.4942]
[1718373324430,28.6092,148.14,148.11,7.4942]
[1718373324744,13.623,148.14,148.11,24.9804]
[1718373324938,21.1159,148.14,148.11,24.9804]
[1718373325315,21.1159,148.14,148.11,14.9882]
[1718373325520,6.13,148.14,148.06,21.1177]
[1718373325841,15.5854,148.18,148.13,6.13]
[1718373325842,2.497,148.18,148.13,6.13]
[1718373326025,7.4909,148.18,148.15,14.9843]
[1718373326223,13.6204,148.19,148.17,2.497]
[1718373326422,8.10713846,148.18,148.17,2.497]
[1718373326946,7.4876,148.25,148.22,22.4663]
[1718373327156,10.60184593,148.24,148.22,2.4961]
[1718373327323,8.10584593,148.23,148.22,24.9626]
[1718373327517,8.10584593,148.23,148.22,7.4887]
[1718373327717,8.10584593,148.23,148.15,6.6122]
[1718373327913,2.4966,148.2,148.19,2.4966]
[1718373328122,2.4966,148.2,148.18,14.9811]
[1718373328345,13.6198,148.2,148.18,7.4905]
[1718373328524,8.6266,148.2,148.18,7.4905]
[1718373328717,6.13,148.2,148.19,7.4902]
[1718373328918,6.13,148.2,148.19,14.9805]
[1718373329218,8.6265,148.21,148.19,12.4838]
[1718373329418,2.4965,148.21,148.19,22.4709]
[1718373329623,26.13,148.21,148.2,2.4965]
[1718373329839,20.0,148.21,148.2,7.4897]
[1718373330066,22.4964,148.21,148.2,2.4965]
[1718373330345,7.4885,148.23,148.21,7.4891]
[1718373330551,2.496,148.24,148.22,7.4886]
[1718373330743,2.4961,148.23,148.22,2.4962]
[1718373330934,33.618,148.24,148.21,22.4677]
[1718373331134,28.626,148.24,148.22,7.4887]
[1718373331533,33.6179,148.24,148.22,7.4887]
[1718373331750,33.6179,148.24,148.21,24.9639]
[1718373331751,2.4961,148.23,148.21,24.9639]
[1718373331924,2.4961,148.23,148.21,14.9782]
[1718373332752,2.4961,148.23,148.22,2.4962]
[1718373332947,2.4961,148.23,148.21,24.9639]
[1718373333333,51.0898,148.24,148.22,2.4962]
[1718373333527,2.4961,148.23,148.22,2.4962]
[1718373334550,7.4883,148.23,148.21,7.4889]
[1718373334726,14.9766,148.23,148.21,2.4963]
[1718373335078,2.4964,148.21,148.19,14.9803]
[1718373335260,31.0939,148.22,148.2,7.4898]
[1718373335428,24.9639,148.22,148.2,7.4898]
[1718373335627,7.4892,148.22,148.2,7.4898]
[1718373336122,14.9781,148.22,148.2,7.4898]
[1718373336537,7.4892,148.22,148.2,7.4898]
[1718373336748,7.4892,148.22,148.19,17.4774]
[1718373336749,7.4894,148.21,148.19,2.4967]
[1718373336924,2.4967,148.2,148.12,24.52]
[1718373337249,31.0953,148.21,148.19,2.4967]
[1718373337425,2.4965,148.21,148.19,7.4901]
[1718373337753,2.4966,148.2,148.18,24.9688]
[1718373338046,7.4898,148.2,148.18,24.9688]
[1718373338221,2.4966,148.2,148.19,2.4967]
[1718373338645,31.0955,148.21,148.19,2.4967]
[1718373339156,31.0955,148.21,148.19,7.4902]
[1718373339327,13.6197,148.21,148.19,7.4902]
[1718373339528,21.1091,148.21,148.19,7.4902]
[1718373339747,8.6266,148.21,148.2,2.4966]
[1718373339929,31.0937,148.22,148.2,2.4966]
[1718373340645,7.4894,148.21,148.19,24.9674]
[1718373340853,2.4965,148.21,148.2,2.4966]
[1718373341053,7.4894,148.21,148.19,24.9674]
[1718373341265,13.6189,148.22,148.2,7.4897]
[1718373341468,31.0916,148.23,148.21,7.4892]
[1718373341667,2.4962,148.22,148.21,2.4964]
[1718373341969,6.13,148.22,148.21,2.4964]
[1718373342462,6.13,148.22,148.21,7.4893]
[1718373342670,6.13,148.22,148.21,24.9644]
[1718373342967,13.6185,148.23,148.21,24.9644]
[1718373344069,13.6185,148.23,148.21,17.4751]
[1718373344265,13.6185,148.23,148.21,7.4893]
[1718373344438,14.9769,148.23,148.21,7.4893]
[1718373344637,29.9841,148.24,148.17,6.13]
[1718373344638,20.0,148.24,148.17,6.13]
[1718373344978,2.4961,148.23,148.22,2.4961]
[1718373345142,22.4961,148.23,148.22,2.4961]
[1718373345337,27.4883,148.23,148.21,24.9637]
[1718373345761,27.4883,148.23,148.21,7.489]
[1718373345966,22.4961,148.23,148.21,24.9639]
[1718373346179,22.4961,148.23,148.22,2.4962]
[1718373346846,2.496,148.24,148.22,22.466]
[1718373347182,2.496,148.24,148.23,2.4961]
[1718373347542,22.496,148.24,148.22,24.9621]
[1718373347877,27.4879,148.24,148.22,7.4884]
[1718373348059,22.496,148.24,148.22,14.9772]
[1718373348258,7.4884,148.23,148.21,2.4963]
[1718373348449,2.4963,148.22,148.2,22.4685]
[1718373348657,2.4963,148.22,148.21,2.4964]
[1718373348874,24.9614,148.23,148.21,2.4964]
[1718373349063,7.4885,148.23,148.21,14.9785]
[1718373349373,7.4884,148.23,148.21,14.9785]
[1718373349584,14.9767,148.23,148.21,7.4892]
[1718373350151,7.4884,148.23,148.21,14.9785]
[1718373350571,17.473,148.23,148.2,24.9652]
[1718373350748,2.4963,148.22,148.2,24.9652]
[1718373351080,22.4667,148.22,148.2,2.4965]
[1718373351259,2.4963,148.22,148.21,2.4964]
[1718373351650,31.0917,148.23,148.21,2.4964]
[1718373351975,8.6261,148.23,148.21,24.9644]
[1718373352153,2.4961,148.23,148.22,2.4962]
[1718373352472,48.5944,148.24,148.22,2.4962]
[1718373352681,51.0904,148.24,148.22,2.4962]
[1718373353462,28.626,148.24,148.22,24.9624]
[1718373353783,33.6179,148.24,148.22,24.9624]
[1718373353982,41.1057,148.24,148.22,7.4886]
[1718373354276,33.6179,148.24,148.22,7.4886]
[1718373354574,41.1057,148.24,148.22,2.4962]
[1718373355082,22.496,148.24,148.23,2.4961]
[1718373355472,22.496,148.24,148.22,24.9625]
[1718373355675,2.4961,148.23,148.22,2.4961]
[1718373356059,2.4961,148.23,148.21,24.9637]
[1718373356265,7.4883,148.23,148.21,24.9637]
[1718373356679,51.09,148.24,148.22,2.4962]
[1718373356869,51.09,148.24,148.22,7.4887]
[1718373357191,2.4961,148.23,148.21,24.9637]
[1718373357357,51.0899,148.24,148.22,2.4962]
[1718373357561,51.0899,148.24,148.22,7.4887]
[1718373357764,33.6181,148.24,148.22,7.4887]
[1718373358085,33.6181,148.24,148.22,14.9775]
[1718373358483,33.6181,148.24,148.22,7.4887]
[1718373358657,2.4961,148.23,148.22,2.4962]
[1718373359456,51.0899,148.24,148.22,2.4962]
[1718373359962,42.4639,148.24,148.22,2.4962]
[1718373360179,51.0899,148.24,148.22,2.4962]
[1718373360486,2.4961,148.23,148.21,24.9634]
[1718373360669,7.4883,148.23,148.21,24.9634]